Cogmind - Beta 14 @@@ ROGUE MODE // 2024.09.26 @ 17:00:26 Player: star Result: Destroyed self with Grenade Launcher Performance ------------- Evolutions (0) 0 Regions Visited (2) 400 Robots Destroyed (16) 80 Value Destroyed (550) 550 Prototype IDs (11) 220 Alien Tech Used (0) 0 Bonus (0) 0 TOTAL SCORE: 1250 Bonus ------- None Cogmind --------- Core Integrity 0/250 Matter 59/300 Energy 100/100 System Corruption 0% Temperature Cool (0) Movement Treading (160) Location -10/Subcaves Parts ------- > --- POWER (1) -------- (None) > --- PROPULSION (2) --- Spiked Treads Subdweller Monowheel > --- UTILITY (2) ------ (None) > --- WEAPON (2) ------- Grenade Launcher > --- INVENTORY (5) ---- Power Bank Subdweller Laser Subdweller Laser Barrage Gun Multitool Peak State ------------ > --- POWER ------------ Makeshift Power Source > --- PROPULSION ------- Subdweller Monowheel Subdweller Monowheel > --- UTILITY ---------- Scrap Shield > --- WEAPON ----------- Subdweller Laser Subdweller Laser > --- INVENTORY -------- Power Bank Riot Gun Subdweller Laser Subdweller Laser Grenade Launcher [Rating: 17] Favorites ----------- Power Makeshift Power Source Engine Makeshift Power Source Propulsion Subdweller Monowheel Treads Spiked Treads Leg Aluminum Leg Wheel Subdweller Monowheel Utility Scrap Shield Device Disposable Heat Sink Storage Large Storage Unit Protection Scrap Shield Weapon Subdweller Laser Energy Gun Subdweller Laser Ballistic Gun Assault Rifle Ballistic Cannon Light Cannon Launcher Grenade Launcher Special Weapon Multitool Build | -11 -10 -10 ------- Run | Yrd Mat Sub Slots Evolved . | . . . Power . | . . . Propulsion . | . . . Utility . | . . . Weapon . | . . . Parts Attached 35 | 7 1 27 Power 3 | 1 . 2 Engine 3 | 1 . 2 Core . | . . . Reactor . | . . . Propulsion 12 | 3 . 9 Treads 1 | . . 1 Leg 1 | 1 . . Wheel 10 | 2 . 8 Hover . | . . . Flight . | . . . Utility 4 | 1 1 2 Device 1 | . . 1 Storage 2 | 1 1 . Processor . | . . . Hackware . | . . . Protection 1 | . . 1 Artifact . | . . . Weapon 16 | 2 . 14 Energy Gun 7 | 1 . 6 Energy Cannon . | . . . Ballistic Gun 4 | 1 . 3 Ballistic Cannon 1 | . . 1 Launcher 2 | . . 2 Special Weapon 2 | . . 2 Impact Weapon . | . . . Slashing Weapon . | . . . Piercing Weapon . | . . . Special Melee Weapon . | . . . Unidentified Prototypes . | . . . Parts Lost 5 | . . 5 Power 1 | . . 1 Propulsion 2 | . . 2 Utility 1 | . . 1 Weapon 1 | . . 1 Highest Loss Streak 2 | . . 2 To Critical Strikes . | . . . Average Slot Usage (%) 78 | . 98 74 Engine 11 | . 14 11 Treads 3 | . . 4 Wheel 23 | . 28 22 Storage 7 | . 26 2 Protection 5 | . . 6 Energy Gun 17 | . 14 17 Ballistic Gun 5 | . 14 3 Launcher 2 | . . 2 Peak Build Rating 17 | 6 7 17 Average Rating 11 | 4 6 12 On Entrance 4 | . 6 7 Naked Turns . | . . . Heaviest Build 35 | 12 32 35 Greatest Support 40 | 26 26 40 Greatest Overweight (x) 2 | . 1 2 Average Overweight (x) . | . . . Largest Inventory Capacity 15 | 8 15 15 Average Capacity 7 | 7 14 6 Most Carried 8 | . 4 8 Average Carried 4 | . 3 5 Final Capacity 15 | 8 15 5 Final Carried 5 | . 4 5 Class Distribution -------------------- 51% | Mutant 35% | Subdweller-Mutant 12% | Derelict-Mutant Dominant Class ---------------- Mutant | -10/Materials Subdweller-Mutant | -10/Subcaves Resources | -11 -10 -10 ----------- Run | Yrd Mat Sub Matter Collected 819 | 266 . 553 Remotely . | . . . Salvage Created 774 | . 40 734 Parts 47 | . 1 46 Haulers Intercepted . | . . . Recyclers Shooed . | . . . Parts Field Recycled . | . . . Retrieved Matter . | . . . Parts Self-Destructed 6 | . . 6 Prevented . | . . . Kills | -11 -10 -10 ------- Run | Yrd Mat Sub Combat Hostiles Destroyed 16 | . 1 15 Guns 10 | . 1 9 Cannons 1 | . . 1 AOE 5 | . . 5 Classes Destroyed 6 | . 1 5 Swarmer 3 | . . 3 Grunt 3 | . 1 2 Sentry 1 | . . 1 Artisan 1 | . . 1 Cobbler 1 | . . 1 Subdweller 9 | . . 9 Best Kill Streak 3 | . 1 3 Combat Bots Only 3 | . 1 3 Max Kills in Single Turn 2 | . 1 2 Gunslinging . | . . . Exploded 2 | . . 2 Melee . | . . . Uniques/NPCs Destroyed . | . . . Combat | -11 -10 -10 -------- Run | Yrd Mat Sub Hostile Shots Fired 113 | . 6 107 Missed 44 | . 1 43 Damage Taken 1112 | . 89 1023 Core 254 | . 10 244 Absorbed by Shields . | . . . Core Remaining (%) 100 | 100 . . Volleys Fired 106 | 3 4 99 Largest 2 | 1 2 2 Hottest 120 | 20 70 120 Shots Fired 161 | 3 8 150 Gun 110 | 3 8 99 Cannon 6 | . . 6 Launcher 21 | . . 21 Special 24 | . . 24 Kinetic 24 | 3 4 17 Thermal 115 | . 4 111 Explosive 21 | . . 21 Electromagnetic 1 | . . 1 Robot Hit Streak 39 | 3 2 39 Robot Miss Streak 3 | . 1 3 Penetration Max . | . . . Secondary Targets . | . . . Shots Hit Robots 91 | 3 4 84 Core Hits 41 | . 2 39 Critical Kills . | . . . Critical Parts Destroyed 1 | . . 1 Critical Strikes 3 | . . 3 Destroy 2 | . . 2 Blast 1 | . . 1 Melee Attacks . | . . . Impact . | . . . Slashing . | . . . Piercing . | . . . Sneak Attacks . | . . . Combat Hostiles . | . . . Follow-up Attacks . | . . . Damage Inflicted 1872 | 40 51 1781 Guns 1279 | 40 51 1188 Cannons 65 | . . 65 Explosions 416 | . . 416 Melee . | . . . Ramming . | . . . Kinetic 260 | 40 12 208 Thermal 1196 | . 39 1157 Explosive 416 | . . 416 Electromagnetic . | . . . Impact . | . . . Slashing . | . . . Piercing . | . . . Highest Corruption . | . . . Average Corruption . | . . . Corruption Purged . | . . . Corruption Blocked . | . . . Overload Shots . | . . . Overflow Damage . | . . . Projectiles . | . . . Explosions . | . . . Melee . | . . . Knockbacks 1 | . . 1 Impact . | . . . Kinetic 1 | . . 1 Secondary . | . . . Self-Inflicted Damage 68 | . . 68 Shots 4 | . . 4 Rammed . | . . . Targets Rammed . | . . . Kicked . | . . . Crushed . | . . . Highest Temperature 99 | . 60 99 Average Temperature 25 | . 31 25 Received Heat Transfer 336 | . 30 306 Siege Activations . | . . . Robots Corrupted . | . . . Combat Hostiles . | . . . Parts Fried . | . . . Impact Corruptions . | . . . Robots Melted . | . . . Combat Hostiles . | . . . Parts Melted . | . . . Heat Transferred 1786 | . 111 1675 Parts Sabotaged . | . . . Parts Stolen . | . . . Parts Stripped . | . . . Power Chain Reactions . | . . . Alert | -11 -10 -10 ------- Run | Yrd Mat Sub Peak Influence 35 | . 35 . Initial . | . . . Average 17 | . 19 . Maximum Alert Level . | . . . Low Security (%) 100 | 100 100 . Level 1 . | . . . Level 2 . | . . . Level 3 . | . . . Level 4 . | . . . Level 5 . | . . . High Security . | . . . Max Security . | . . . Squads Dispatched . | . . . Investigation . | . . . Extermination . | . . . Reinforcement . | . . . Assault . | . . . Garrison . | . . . Intercept . | . . . Searches Triggered . | . . . Construction Impeded . | . . . Haulers Reinforced . | . . . Active Scanning Responses . | . . . Cargo Convoy Interrupts . | . . . Stealth | -11 -10 -10 --------- Run | Yrd Mat Sub Distress Signals 1 | . 1 . Communications Jammed . | . . . Distress Signals . | . . . Times Spotted 27 | . 2 25 Peak Tracking Total 6 | . 3 6 Tactical Retreats 7 | . 1 6 Traps | -11 -10 -10 ------- Run | Yrd Mat Sub Traps Triggered 3 | . 1 2 Indirectly . | . . . Trap Hack Attempts . | . . . Triggered . | . . . Disarmed . | . . . Reprogrammed . | . . . Reused . | . . . Traps Extracted . | . . . Installed . | . . . Triggered . | . . . Machines | -11 -10 -10 ---------- Run | Yrd Mat Sub Machines Disabled 1 | . . 1 Max in Single Turn 1 | . . 1 Machines Repaired . | . . . Machines Dismantled . | . . . Machines Sabotaged . | . . . Overloaded Fab Kills . | . . . Hacking | -11 -10 -10 --------- Run | Yrd Mat Sub Machines Accessed 2 | . . 2 Terminals . | . . . Fabricators . | . . . Repair Stations . | . . . Recycling Units . | . . . Scanalyzers . | . . . Garrison Access . | . . . Total Hacks 6 | . . 6 Successful 6 | . . 6 Failed . | . . . Catastrophic . | . . . Database Lockouts . | . . . Manual . | . . . Terminals . | . . . Fabricators . | . . . Repair Stations . | . . . Recycling Units . | . . . Scanalyzers . | . . . Garrison Access . | . . . Terminal Hacks 6 | . . 6 Record 5 | . . 5 Derelict Proto ID Bank 1 | . . 1 Fabricator Hacks . | . . . Repair Station Hacks . | . . . Recycling Unit Hacks . | . . . Scanalyzer . | . . . Garrison Access Hacks . | . . . Unauthorized Hacks . | . . . Terminals . | . . . Fabricators . | . . . Repair Stations . | . . . Recycling Units . | . . . Scanalyzers . | . . . Garrison Access . | . . . Data Cores Recovered . | . . . Used . | . . . Hacking Detections . | . . . Full Trace Events . | . . . Feedback Events . | . . . Feedback Blocked . | . . . Robot Schematics Acquired . | . . . Robots Built . | . . . Authchips . | . . . Time . | . . . Total Robot Build Rating . | . . . Part Schematics Acquired . | . . . Parts Built . | . . . Authchips . | . . . Time . | . . . Total Part Build Rating . | . . . Parts Repaired . | . . . Time . | . . . Parts Recycled . | . . . Recycled Matter . | . . . Retrieved Matter . | . . . Retrieved Components . | . . . Parts Scanalyzed . | . . . Part Schematics Acquired . | . . . Parts Damaged . | . . . Bothacking | -11 -10 -10 ------------ Run | Yrd Mat Sub Used RIF Installer . | . . . Robots Hacked . | . . . Non-combat . | . . . Combat . | . . . Robot Hacks Applied . | . . . Relay Couplers Released . | . . . Fabnet Peak Effective % . | . . . Robots Rewired . | . . . Allies Hacked . | . . . Hacks Repelled . | . . . Allies | -11 -10 -10 -------- Run | Yrd Mat Sub Total Allies . | . . . Largest Group . | . . . Highest-Rated Group . | . . . Highest-Rated Ally . | . . . Total Orders . | . . . Ally Attacks . | . . . Total Damage . | . . . Kills . | . . . Allies Corrupted . | . . . Allies Melted . | . . . Intel | -11 -10 -10 ------- Run | Yrd Mat Sub Robot Analysis Total . | . . . Derelict Logs Recovered 1 | . . 1 Drone Launches . | . . . Drone Recoveries . | . . . Exploration | -11 -10 -10 ------------- Run | Yrd Mat Sub Turns Passed 2899 | 68 529 2302 Spaces Moved 1702 | 63 95 1544 Core 11 | 11 . . Treads 391 | . . 391 Legs 3 | 3 . . Wheels 1297 | 49 95 1153 Hover . | . . . Flight . | . . . Fastest Speed 50 | 50 90 105 Average Speed 121 | 82 93 124 Slowest Speed 160 | 120 105 160 Overloaded Moves . | . . . Propulsion Burnouts . | . . . Robots Hopped . | . . . Cave-ins Triggered . | . . . Exploration Rate (%) 38 | 3 22 90 Regions Visited 2 Branch Regions 1 Pre-discovered Areas 1 | . . 1 Known Exits Taken . | . . . Unknown Exits Taken 2 | 1 1 . Scrap Searched 10 | . . 10 Spaces Dug . | . . . Terrain Destroyed 113 | . . 113 Melee . | . . . Projectile . | . . . AOE 113 | . . 113 Terrain Rammed . | . . . Walls Destroyed . | . . . Machines Disabled . | . . . Actions | -11 -10 -10 --------- Run | Yrd Mat Sub Total 2363 | 72 526 1765 Wait 496 | . 423 73 Move 1700 | 62 94 1544 Hop . | . . . Pick Up 11 | . 4 7 Fast Attach 9 | 6 1 2 Attach 1 | . . 1 Detach . | . . . Swap 25 | 1 . 24 Drop 13 | . . 13 Fire 106 | 3 4 99 Melee . | . . . Ram . | . . . Kick . | . . . Crush . | . . . Escape Stasis . | . . . Rewire 2 | . . 2 Trap . | . . . Miscellaneous . | . . . Route ------- -11/Scrapyard -10/Materials -10/Subcaves (discovered 3 exits: *Mat x2 / Rec) History --------- Turn | Location | Event 4 | -11/Scrapyard | Discovered new exit (range 14) 69 | -11/Scrapyard | Entered Materials 311 | -10/Materials | Build established: Mutant 576 | -10/Materials | Discovered new exit (range 5) 598 | -10/Materials | Entered Subcaves 608 | -10/Subcaves | Shifting Twisted Machinery released Sub. Power Source 702 | -10/Subcaves | Shifting Twisted Machinery released Sub. Power Source 723 | -10/Subcaves | Shifting Twisted Machinery released Sub. Power Source 789 | -10/Subcaves | Learned location of Zion (-7) 843 | -10/Subcaves | Discovered new exit (range 6) 1181 | -10/Subcaves | A swath of the cavern ceiling suddenly collapsed 1184 | -10/Subcaves | Build established: Subdweller-Mutant 1418 | -10/Subcaves | Disturbed a concealed Subdweller 1483 | -10/Subcaves | Shifting Twisted Machinery released Battle Cannon 1491 | -10/Subcaves | Shifting Twisted Machinery released Sub. Monowheel 1633 | -10/Subcaves | Visited 4L-MR0's lab 1650 | -10/Subcaves | Found Power Bank 1768 | -10/Subcaves | A swath of the cavern ceiling suddenly collapsed 1929 | -10/Subcaves | Core integrity fell below 50% 2249 | -10/Subcaves | Visited Clippyterm 2258 | -10/Subcaves | Identified exit to Recycling 2258 | -10/Subcaves | Identified exit to Materials 2258 | -10/Subcaves | Learned Factory stockpile data 2305 | -10/Subcaves | Core integrity fell below 20% 2441 | -10/Subcaves | Ambushed by Subdwellers from Twisted Machinery 2747 | -10/Subcaves | Build established: Mutant 2900 | -10/Subcaves | Destroyed self with Grenade Launcher Last Messages --------------- It looks like you're REDACTED, I can suggest REDACTED and REDACTED. Also definitely avoid REDACTED. 02304_ Triggered Piercing Trap. 02304_ Spikes shoot up from the floor. 02304_ Critical hit (Impale). 02347_ Acquired 36 matter. 02441_ 1M-8G0(R) emerges from the Twisted Machinery. 02444_ Mak. Power Source destroyed. 02450_ Riot Gun destroyed. 02453_ 1M-8G0(R) destroyed. 02455_ 5S-IM3(R) destroyed. 02466_ Acquired 4 matter. 02698_ The unstable cave ceiling collapses. 02777_ Subatomizers dissect the Sub. Optics. 02801_ Acquired 53 matter. 02826_ The unstable cave ceiling collapses. 02864_ 88-27V(u) builds Twisted Machinery. 02900_ The unstable cave ceiling collapses. Map ----- +----------------------------------------------------+ | [ ##### # "" ## # # # | | *% &### # # ## &&## ###### | | ### ####" # ######## &*### #???## | | # ###?#########?# " ###????###!!*!####??## | | # ###?????????????# "" " ##?????# &&"]#????# | | ##???????????????# " " #?????#*"=& #????# | | ##????????????????#"" ##?????#&&&[ #????# | | #?????????????????## "#??????#&! ""#????# | | ??????????????????# """##?????#######????# | | ??????????????????### #"""#????????????????## | | ????????????????????## ""##?????????????????## | | ?????????????????????# # #???????????????????? | | #????????????????????## # #??????????????????? | | ???????????????????????# # ##??????????????????? | | ???????????????????????## ## ##??????????????????? | | ???????????????????????# #??????????????????? | | ???????????????????????# # #??????????????????? | | ???????????????????????# # #??????????????????? | | ???????????????????????# #??????????????????? | | ???????????????????????## ###?????????????????? | | ????????????????????????# ## #?????????????????? | | ????????????????????????### # #?????????????????? | | ???????????????????????????## ##????????????????? | | ?????????????????????######### #????????????????? | | ????????????????????## ## # ## ##????????????????# | | ????????????????????# @ #?????????????????# | | ????????????????????# # #???????????????# | | ???????????????????# ## #??????????????# | | ??????????????????# ## ########???????# | | ?????????????????# ## ##"""""#???????# | | ?????????????????# ## # " ###""X""#???????# | | ?????????????????# #???# " #?#" "#???????? | | ?????????????????# #???? #"" ##?### ###???????? | | ?????????????????#####?????"""" ??### ##????????? | | ???????????????????????????##""" ### ###??????? | | ?????????????????????????????"""### ###????? | | ???????????????????????????????"#?##" # #####? | | ?????????????????????????????????#### #? | | ?????????????????????????????????#""" | ## ##? | | ?????????????????????????????????#"### # ## | | ???????????????????????????????? ???# ## ## ### | | ???????????????????????????????# ????# ## ## # | | ?????????????????????????????????????# # # # | | ?????????????????????????????????????# ## ## | | ?????????????????????????????????????# ## # # | | ?????????????????????????????????????# #^ | | ?????????????????????????????????????# ## | | ?????????????????????????????????????# ## ## | | ?????????????????????????????????????#] ^###### | | ????????????????????????????????????# ^^##????# | +----------------------------------------------------+ Best States ------------- Heat Dissipation 25 Coolant Potential 50 Energy Generation 15 Energy Capacity 200 Matter Stores 300 Matter Capacity 300 Sight Range 16 Terrain Scan Density 10 Armor Coverage 800 Evasion (%) 45 Recoil Reduction 1 Item Schematics ----------------- None Robot Schematics ------------------ None Fabricated ------------ Nothing Alien Tech Used ----------------- None Achievements -------------- None Challenges ------------ None Game ------ Seed PulsePlasmaChronowheel Manual? 0 Play Time 00:21:48 Cumulative 101.5 hours Start 2024.09.26 @ 16:33:05 End 2024.09.26 @ 17:00:26 Sessions 5 Manual Loads 0 Difficulty Rogue Special Mode None Game No. 174 Rogue 174 Adventurer 0 Explorer 0 Win Type - Total 0 Types 0/0/0/0/0/0/0/0/0 Lore% 49 Gallery% 52 Achievement% 41 Wizard Run 0 Options --------- Layout 0 ASCII 0 Keyboard 1 Movement Numpad Keybinds 0 Fullscreen 2 Font 18/SmallcapsGlow Map View 76x50 Zoom Use 2% Tactical HUD 1 Map Filters NONE Filters NONE Steam 1 RUN: 17c9299e-e14f-422b-acdb-0d626c7100a3